[Event "ONJK-B 2019"]
[Site "Borne"]
[Date "2019.08.09"]
[Round "8.4"]
[White "Baselmans, Daan"]
[Black "Klaren, Oscar"]
[Result "1/2-1/2"]
[ECO "B33"]
[WhiteElo "1720"]
[BlackElo "1737"]
[Annotator "NA"]
[PlyCount "61"]
[EventDate "2019.08.05"]
[EventType "swiss"]
[EventCountry "NED"]
[SourceTitle "playchess.com"]
[Source "ChessBase"]
[SourceQuality "1"]
[TimeControl "5400+30"]

1. e4 {[%emt 0:00:00]} c5 {[%emt 0:00:00]} 2. Nf3 {[%emt 0:00:00]} Nc6 {[%emt 0:00:00]} 3. d4 {[%emt 0:00:00]} cxd4 {[%emt 0:00:00]} 4. Nxd4 {[%emt 0:00:00]} Nf6 {[%emt 0:00:00]} 5. Nc3 {[%emt 0:00:00]} e5 {[%emt 0:00:02]} 6. Ndb5 {[%emt 0:00:02]} d6 {[%emt 0:00:08]} 7. Nd5 {[%emt 0:00:06]} Nxd5 {[%emt 0:00:07]} 8. exd5 {[%emt 0:00:03]} Ne7 {[%emt 0:00:37]} 9. c4 {[%emt 0:00:05]} Ng6 {[%emt 0:00:05]} 10. b4 {[%emt 0:01:50]} a6 {[%emt 0:01:37]} 11. Nc3 {[%emt 0:00:10]} Be7 {[%emt 0:00:41]} 12. Bd3 {[%emt 0:00:31]} O-O {[%emt 0:00:26]} 13. O-O {[%emt 0:00:09]} f5 {[%emt 0:00:11]} 14. Qb3 {[%emt 0:04:26]} Kh8 {[%emt 0:01:43]} 15. f3 {[%emt 0:01:07]} Bd7 {[%emt 0:04:05]} 16. Be3 {[%emt 0:00:15]} Rc8 {[%emt 0:00:19]} 17. Rfc1 {[%emt 0:01:39]} Bg5 {[%emt 0:06:59]} 18. Bxg5 {[%emt 0:01:15]} Qxg5 {[%emt 0:00:23]} 19. Nd1 {[%emt 0:03:55]} Nh4 {[%emt 0:02:16]} 20. Bf1 {[%emt 0:00:06]} e4 {[%emt 0:01:30]} 21. fxe4 {[%emt 0:04:05]} fxe4 {[%emt 0:00:51]} 22. Qg3 {[%emt 0:00:26]} Qh6 {[%emt 0:04:30]} 23. Qe3 {[%emt 0:06:33]} Rf4 {[%emt 0:08:05]} 24. Qb6 {[%emt 0:20:59]} Rg4 {[%emt 0:12:54]} 25. Kh1 {[%emt 0:03:56]} Nf5 {[%emt 0:06:40]} 26. Nf2 {[%emt 0:01:25]} Rh4 {[%emt 0:01:28]} 27. Nh3 {[%emt 0:04:25]} Ne3 {[%emt 0:08:10]} 28. Rc3 {[%emt 0:05:23]} Nxf1 {[%emt 0:09:46]} 29. Rxf1 {[%emt 0:00:27]} Bxh3 {[%emt 0:03:12]} 30. gxh3 {[%emt 0:03:09]} Rxh3 {[%emt 0:01:02]} 31. Qf2 {[%emt 0:02:23]} 1/2-1/2

[Event "ONJK-B 2019"]
[Site "Borne"]
[Date "2019.08.09"]
[Round "8.5"]
[White "Albertus, Bram"]
[Black "Nopper, Louis"]
[Result "1-0"]
[ECO "A26"]
[WhiteElo "1841"]
[BlackElo "1579"]
[Annotator "NA"]
[PlyCount "59"]
[EventDate "2019.08.05"]
[EventType "swiss"]
[EventCountry "NED"]
[SourceTitle "playchess.com"]
[Source "ChessBase"]
[SourceQuality "1"]
[TimeControl "5400+30"]

1. c4 {[%emt 0:00:00]} Nf6 {[%emt 0:00:00]} 2. g3 {[%emt 0:00:00]} g6 {[%emt 0:00:00]} 3. Bg2 {[%emt 0:00:00]} Bg7 {[%emt 0:00:00]} 4. Nc3 {[%emt 0:00:00]} O-O {[%emt 0:00:02]} 5. e4 {[%emt 0:00:29]} d6 {[%emt 0:00:20]} 6. Nge2 {[%emt 0:00:07]} e5 {[%emt 0:00:25]} 7. O-O {[%emt 0:00:25]} Nc6 {[%emt 0:00:41]} 8. d3 {[%emt 0:00:14]} Nd7 {[%emt 0:01:49]} 9. Be3 {[%emt 0:04:20]} Ne7 {[%emt 0:04:17]} 10. Qd2 {[%emt 0:01:01]} c6 {[%emt 0:02:07]} 11. f4 {[%emt 0:03:34]} f5 {[%emt 0:03:40]} 12. Rae1 {[%emt 0:03:20]} Nf6 {[%emt 0:07:50]} 13. h3 {[%emt 0:03:16]} Be6 {[%emt 0:06:36]} 14. b3 {[%emt 0:09:28]} Qd7 {[%emt 0:04:18]} 15. Kh2 {[%emt 0:01:05]} b6 {[%emt 0:10:02]} 16. Rd1 {[%emt 0:04:33]} Rad8 {[%emt 0:00:46]} 17. Qc1 {[%emt 0:06:46]} exf4 {[%emt 0:12:21]} 18. Bxf4 {[%emt 0:05:07]} d5 {[%emt 0:00:57]} 19. cxd5 {[%emt 0:04:34]} cxd5 {[%emt 0:03:59]} 20. e5 {[%emt 0:00:13]} Nh5 {[%emt 0:02:11]} 21. d4 {[%emt 0:00:13]} Bh8 {[%emt 0:06:11]} 22. Qa3 {[%emt 0:04:14]} Ng7 {[%emt 0:03:01]} 23. Bg5 {[%emt 0:02:21]} Rf7 {[%emt 0:02:42]} 24. Nf4 {[%emt 0:04:50]} Rc8 {[%emt 0:03:53]} 25. Rd3 {[%emt 0:02:36]} Ne8 {[%emt 0:02:46]} 26. Bxe7 {[%emt 0:00:53]} Rxc3 {[%emt 0:00:33]} 27. Rxc3 {[%emt 0:00:46]} Rxe7 {[%emt 0:00:05]} 28. Nxe6 {[%emt 0:00:43]} Rxe6 {[%emt 0:00:13]} 29. Rfc1 {[%emt 0:01:14]} Bg7 {[%emt 0:00:12]} 30. Qa4 {[%emt 0:04:41]} 1-0

[Event "ONJK-B 2019"]
[Site "Borne"]
[Date "2019.08.09"]
[Round "8.6"]
[White "Ekker, Laurens"]
[Black "Hubers, Daan"]
[Result "1-0"]
[ECO "B00"]
[WhiteElo "1614"]
[BlackElo "1512"]
[Annotator "NA"]
[PlyCount "29"]
[EventDate "2019.08.05"]
[EventType "swiss"]
[EventCountry "NED"]
[SourceTitle "playchess.com"]
[Source "ChessBase"]
[SourceQuality "1"]
[TimeControl "5400+30"]

1. e4 {[%emt 0:00:00]} b6 {[%emt 0:02:06]} 2. d4 {[%emt 0:00:00]} Bb7 {[%emt 0:00:07]} 3. Bd3 {[%emt 0:00:00]} e6 {[%emt 0:00:08]} 4. Nf3 {[%emt 0:00:00]} c5 {[%emt 0:00:23]} 5. c3 {[%emt 0:00:01]} cxd4 {[%emt 0:02:31]} 6. cxd4 {[%emt 0:00:20]} Nf6 {[%emt 0:00:09]} 7. Nc3 {[%emt 0:02:28]} Bb4 {[%emt 0:00:42]} 8. Qe2 {[%emt 0:01:57]} Qc7 {[%emt 0:02:16]} 9. Bd2 {[%emt 0:00:57]} O-O {[%emt 0:00:29]} 10. O-O {[%emt 0:01:13]} Nc6 {[%emt 0:01:07]} 11. e5 {[%emt 0:08:40]} Bxc3 {[%emt 0:05:00]} 12. bxc3 {[%emt 0:15:41]} Nd5 {[%emt 0:00:54]} 13. Bxh7+ {[%emt 0:03:22]} Kh8 {[%emt 0:01:08]} 14. Qe4 {[%emt 0:05:49]} g6 {[%emt 0:01:48]} 15. Qh4 {[%emt 0:01:58]} 1-0

[Event "ONJK-B 2019"]
[Site "Borne"]
[Date "2019.08.09"]
[Round "8.7"]
[White "Van Hille, Clara"]
[Black "Heskes, Johan"]
[Result "1-0"]
[ECO "C40"]
[WhiteElo "1391"]
[BlackElo "1535"]
[Annotator "NA"]
[PlyCount "45"]
[EventDate "2019.08.05"]
[EventType "swiss"]
[EventCountry "NED"]
[SourceTitle "playchess.com"]
[Source "ChessBase"]
[SourceQuality "1"]
[TimeControl "5400+30"]

1. e4 {[%emt 0:00:00]} e5 {[%emt 0:00:00]} 2. Nf3 {[%emt 0:00:00]} f5 {[%emt 0:00:00]} 3. Nxe5 {[%emt 0:00:00]} Qf6 {[%emt 0:00:00]} 4. d4 {[%emt 0:00:00]} d6 {[%emt 0:00:00]} 5. Nc4 {[%emt 0:00:00]} fxe4 {[%emt 0:00:00]} 6. Nc3 {[%emt 0:00:17]} Qg6 {[%emt 0:00:01]} 7. f3 {[%emt 0:00:19]} exf3 {[%emt 0:00:09]} 8. Qxf3 {[%emt 0:00:12]} Nf6 {[%emt 0:00:15]} 9. Ne3 {[%emt 0:00:40]} c6 {[%emt 0:01:10]} 10. Bd3 {[%emt 0:01:00]} Qf7 {[%emt 0:00:44]} 11. O-O {[%emt 0:01:02]} d5 {[%emt 0:00:56]} 12. Bd2 {[%emt 0:05:07]} Be7 {[%emt 0:01:47]} 13. Nf5 {[%emt 0:02:15]} O-O {[%emt 0:00:58]} 14. Qg3 {[%emt 0:04:54]} Kh8 {[%emt 0:01:50]} 15. Nxe7 {[%emt 0:02:39]} Qxe7 {[%emt 0:01:31]} 16. Qh4 {[%emt 0:09:22]} Rg8 {[%emt 0:09:54]} 17. Bg6 {[%emt 0:06:59]} Nbd7 {[%emt 0:05:36]} 18. Bg5 {[%emt 0:01:16]} Nf8 {[%emt 0:03:00]} 19. Bd3 {[%emt 0:11:00]} h6 {[%emt 0:07:52]} 20. Rxf6 {[%emt 0:05:09]} gxf6 {[%emt 0:01:40]} 21. Bxf6+ {[%emt 0:00:25]} Qg7 {[%emt 0:00:11]} 22. Qxh6+ {[%emt 0:00:12]} Nh7 {[%emt 0:00:07]} 23. Qxh7# {[%emt 0:00:04]} 1-0

[Event "ONJK-B 2019"]
[Site "Borne"]
[Date "2019.08.09"]
[Round "8.8"]
[White "Tiggelman, Laura"]
[Black "Olree, Alex"]
[Result "0-1"]
[ECO "B06"]
[WhiteElo "1436"]
[BlackElo "1411"]
[Annotator "NA"]
[PlyCount "68"]
[EventDate "2019.08.05"]
[EventType "swiss"]
[EventCountry "NED"]
[SourceTitle "playchess.com"]
[Source "ChessBase"]
[SourceQuality "1"]
[TimeControl "5400+30"]

1. e4 {[%emt 0:00:00]} g6 {[%emt 0:00:00]} 2. c3 {[%emt 0:00:00]} Bg7 {[%emt 0:00:00]} 3. Nf3 {[%emt 0:00:03]} d5 {[%emt 0:00:11]} 4. e5 {[%emt 0:12:00]} c5 {[%emt 0:00:15]} 5. d4 {[%emt 0:00:37]} Nc6 {[%emt 0:02:22]} 6. a3 {[%emt 0:06:00]} f6 {[%emt 0:02:18]} 7. Bb5 {[%emt 0:18:14]} Qb6 {[%emt 0:03:14]} 8. Bxc6+ {[%emt 0:01:06]} bxc6 {[%emt 0:00:04]} 9. b4 {[%emt 0:01:25]} cxd4 {[%emt 0:00:22]} 10. cxd4 {[%emt 0:00:09]} Ba6 {[%emt 0:00:05]} 11. Bb2 {[%emt 0:09:50]} Nh6 {[%emt 0:00:40]} 12. Nc3 {[%emt 0:02:46]} fxe5 {[%emt 0:17:27]} 13. Nxe5 {[%emt 0:02:18]} Bxe5 {[%emt 0:06:26]} 14. dxe5 {[%emt 0:01:02]} O-O {[%emt 0:00:06]} 15. f3 {[%emt 0:08:40]} Qe3+ {[%emt 0:02:12]} 16. Ne2 {[%emt 0:01:11]} Ng4 {[%emt 0:02:55]} 17. Bd4 {[%emt 0:06:22]} Bxe2 {[%emt 0:06:03]} 18. Bxe3 {[%emt 0:00:43]} Bxd1 {[%emt 0:00:02]} 19. fxg4 {[%emt 0:00:05]} Bxg4 {[%emt 0:00:09]} 20. Rc1 {[%emt 0:00:57]} a5 {[%emt 0:03:20]} 21. Rf1 {[%emt 0:05:11]} axb4 {[%emt 0:04:27]} 22. Rxf8+ {[%emt 0:01:11]} Kxf8 {[%emt 0:00:04]} 23. axb4 {[%emt 0:00:17]} Ra2 {[%emt 0:00:04]} 24. h3 {[%emt 0:04:27]} Re2+ {[%emt 0:01:54]} 25. Kf1 {[%emt 0:00:05]} Rxe3 {[%emt 0:00:03]} 26. hxg4 {[%emt 0:00:08]} Rb3 {[%emt 0:00:21]} 27. Rxc6 {[%emt 0:01:24]} Rxb4 {[%emt 0:00:02]} 28. Rc8+ {[%emt 0:00:27]} Kg7 {[%emt 0:05:23]} 29. Re8 {[%emt 0:01:56]} Rf4+ {[%emt 0:00:58]} 30. Kg1 {[%emt 0:00:40]} Kf7 {[%emt 0:01:08]} 31. Rh8 {[%emt 0:00:17]} Ke6 {[%emt 0:02:06]} 32. Rxh7 {[%emt 0:00:12]} d4 {[%emt 0:00:03]} 33. Rh3 {[%emt 0:03:14]} Kxe5 {[%emt 0:00:12]} 34. g5 {[%emt 0:04:52]} Ke4 {[%emt 0:00:48]} 0-1

[Event "ONJK-B 2019"]
[Site "Borne"]
[Date "2019.08.09"]
[Round "8.9"]
[White "Neirynck, Arthur"]
[Black "Lauwers, Timo"]
[Result "1-0"]
[ECO "B23"]
[WhiteElo "1514"]
[BlackElo "1364"]
[Annotator "NA"]
[PlyCount "61"]
[EventDate "2019.08.05"]
[EventType "swiss"]
[EventCountry "NED"]
[SourceTitle "playchess.com"]
[Source "ChessBase"]
[SourceQuality "1"]
[TimeControl "5400+30"]

1. e4 {[%emt 0:00:00]} c5 {[%emt 0:00:00]} 2. Nc3 {[%emt 0:00:13]} Nc6 {[%emt 0:00:00]} 3. f4 {[%emt 0:00:09]} e6 {[%emt 0:00:04]} 4. Nf3 {[%emt 0:00:15]} d5 {[%emt 0:00:27]} 5. Bb5 {[%emt 0:00:40]} Nge7 {[%emt 0:00:31]} 6. d3 {[%emt 0:01:03]} a6 {[%emt 0:00:48]} 7. Bxc6+ {[%emt 0:00:35]} Nxc6 {[%emt 0:00:29]} 8. O-O {[%emt 0:00:39]} Be7 {[%emt 0:01:24]} 9. Qe1 {[%emt 0:04:22]} O-O {[%emt 0:08:47]} 10. Qg3 {[%emt 0:07:15]} Bf6 {[%emt 0:02:02]} 11. Qh3 {[%emt 0:04:43]} h6 {[%emt 0:12:46]} 12. g4 {[%emt 0:09:07]} Nd4 {[%emt 0:09:41]} 13. Rf2 {[%emt 0:08:47]} Nxf3+ {[%emt 0:01:49]} 14. Rxf3 {[%emt 0:02:50]} Bxc3 {[%emt 0:00:44]} 15. bxc3 {[%emt 0:02:20]} dxe4 {[%emt 0:00:24]} 16. Rg3 {[%emt 0:10:08]} exd3 {[%emt 0:05:01]} 17. g5 {[%emt 0:10:27]} e5 {[%emt 0:08:57]} 18. f5 {[%emt 0:03:45]} hxg5 {[%emt 0:02:23]} 19. Bxg5 {[%emt 0:07:07]} f6 {[%emt 0:13:01]} 20. Bh6 {[%emt 0:02:08]} Rf7 {[%emt 0:00:42]} 21. Qg4 {[%emt 0:01:42]} Qe7 {[%emt 0:01:30]} 22. Rxd3 {[%emt 0:01:12]} Bd7 {[%emt 0:08:22]} 23. Rad1 {[%emt 0:02:18]} Bc6 {[%emt 0:00:53]} 24. Rd6 {[%emt 0:02:07]} Kf8 {[%emt 0:02:43]} 25. Re6 {[%emt 0:00:53]} Qc7 {[%emt 0:00:46]} 26. Be3 {[%emt 0:01:34]} b6 {[%emt 0:00:29]} 27. Rdd6 {[%emt 0:01:53]} Rc8 {[%emt 0:05:48]} 28. Qg6 {[%emt 0:03:21]} Bd7 {[%emt 0:01:50]} 29. Qh7 {[%emt 0:02:54]} Re7 {[%emt 0:02:52]} 30. Bh6 {[%emt 0:05:30]} gxh6 {[%emt 0:02:10]} 31. Rxe7 {[%emt 0:02:01]} 1-0

[Event "ONJK-B 2019"]
[Site "Borne"]
[Date "2019.08.09"]
[Round "8.11"]
[White "Pol, Florian"]
[Black "Li-Behn, Tobias"]
[Result "0-1"]
[ECO "A36"]
[WhiteElo "1334"]
[BlackElo "1237"]
[Annotator "NA"]
[PlyCount "112"]
[EventDate "2019.08.05"]
[EventType "swiss"]
[EventCountry "NED"]
[SourceTitle "playchess.com"]
[Source "ChessBase"]
[SourceQuality "1"]
[TimeControl "5400+30"]

1. c4 {[%emt 0:00:00]} c5 {[%emt 0:00:00]} 2. Nc3 {[%emt 0:00:00]} Nc6 {[%emt 0:00:00]} 3. g3 {[%emt 0:00:00]} Nf6 {[%emt 0:00:00]} 4. Bg2 {[%emt 0:00:00]} e6 {[%emt 0:00:11]} 5. d3 {[%emt 0:00:24]} Be7 {[%emt 0:00:58]} 6. e4 {[%emt 0:00:12]} O-O {[%emt 0:01:36]} 7. Nge2 {[%emt 0:00:16]} d6 {[%emt 0:01:26]} 8. O-O {[%emt 0:00:12]} a6 {[%emt 0:00:13]} 9. a4 {[%emt 0:00:28]} Nd7 {[%emt 0:02:46]} 10. b3 {[%emt 0:00:31]} Bf6 {[%emt 0:00:50]} 11. Bd2 {[%emt 0:01:14]} Nb4 {[%emt 0:01:49]} 12. Rb1 {[%emt 0:00:19]} Ne5 {[%emt 0:05:13]} 13. Be1 {[%emt 0:00:54]} Nexd3 {[%emt 0:04:54]} 14. f4 {[%emt 0:02:38]} Nxe1 {[%emt 0:00:35]} 15. Qxe1 {[%emt 0:00:28]} Qc7 {[%emt 0:02:08]} 16. Qd2 {[%emt 0:00:59]} Rd8 {[%emt 0:03:32]} 17. Rfd1 {[%emt 0:04:32]} g6 {[%emt 0:04:55]} 18. h3 {[%emt 0:01:11]} Nc6 {[%emt 0:02:07]} 19. Kh2 {[%emt 0:00:45]} Nd4 {[%emt 0:01:16]} 20. Nxd4 {[%emt 0:00:29]} cxd4 {[%emt 0:03:00]} 21. Ne2 {[%emt 0:00:14]} e5 {[%emt 0:00:03]} 22. Rf1 {[%emt 0:01:45]} Bg7 {[%emt 0:01:04]} 23. Nc1 {[%emt 0:02:34]} Bd7 {[%emt 0:03:43]} 24. Nd3 {[%emt 0:00:31]} a5 {[%emt 0:02:10]} 25. Qf2 {[%emt 0:01:22]} f5 {[%emt 0:02:29]} 26. exf5 {[%emt 0:01:10]} Bxf5 {[%emt 0:00:15]} 27. Bd5+ {[%emt 0:00:13]} Kh8 {[%emt 0:00:30]} 28. Rbd1 {[%emt 0:00:30]} Rab8 {[%emt 0:02:36]} 29. Qf3 {[%emt 0:01:37]} Re8 {[%emt 0:02:38]} 30. Rfe1 {[%emt 0:00:49]} Be6 {[%emt 0:04:35]} 31. fxe5 {[%emt 0:04:21]} dxe5 {[%emt 0:01:16]} 32. Be4 {[%emt 0:01:40]} Rf8 {[%emt 0:01:57]} 33. Qg2 {[%emt 0:00:20]} b6 {[%emt 0:01:40]} 34. Rf1 {[%emt 0:00:37]} Qe7 {[%emt 0:01:34]} 35. Rfe1 {[%emt 0:02:20]} Qd6 {[%emt 0:02:07]} 36. Rb1 {[%emt 0:02:57]} Bd7 {[%emt 0:00:44]} 37. Bd5 {[%emt 0:00:38]} Bf5 {[%emt 0:01:22]} 38. Be4 {[%emt 0:00:12]} Rbc8 {[%emt 0:02:17]} 39. Rb2 {[%emt 0:02:11]} Rf7 {[%emt 0:02:32]} 40. Bd5 {[%emt 0:01:21]} Re7 {[%emt 0:00:50]} 41. Be4 {[%emt 0:00:13]} Rce8 {[%emt 0:01:56]} 42. g4 {[%emt 0:01:10]} Bxe4 {[%emt 0:00:29]} 43. Qxe4 {[%emt 0:00:16]} Bh6 {[%emt 0:00:23]} 44. Rf1 {[%emt 0:01:27]} Bf4+ {[%emt 0:04:24]} 45. Kg2 {[%emt 0:02:14]} g5 {[%emt 0:01:31]} 46. Kh1 {[%emt 0:00:59]} Re6 {[%emt 0:01:09]} 47. Kg2 {[%emt 0:01:23]} Qc6 {[%emt 0:00:44]} 48. Qxc6 {[%emt 0:03:16]} Rxc6 {[%emt 0:00:02]} 49. Re2 {[%emt 0:01:30]} Rce6 {[%emt 0:01:40]} 50. Re4 {[%emt 0:01:14]} Kg7 {[%emt 0:01:17]} 51. Kh1 {[%emt 0:03:10]} h5 {[%emt 0:01:40]} 52. Kg2 {[%emt 0:03:27]} Kg6 {[%emt 0:02:02]} 53. Kf3 {[%emt 0:03:09]} hxg4+ {[%emt 0:01:51]} 54. Kxg4 {[%emt 0:00:39]} Kf6 {[%emt 0:01:31]} 55. Rh1 {[%emt 0:02:17]} Rh8 {[%emt 0:00:28]} 56. Nxf4 {[%emt 0:01:34]} Rh4+ {[%emt 0:02:51]} 0-1

[Event "ONJK-B 2019"]
[Site "Borne"]
[Date "2019.08.09"]
[Round "8.12"]
[White "Schoonhoven, Mark"]
[Black "Van Weerden, Jur"]
[Result "1-0"]
[ECO "B06"]
[WhiteElo "1275"]
[BlackElo "1676"]
[Annotator "NA"]
[PlyCount "91"]
[EventDate "2019.08.05"]
[EventType "swiss"]
[EventCountry "NED"]
[SourceTitle "playchess.com"]
[Source "ChessBase"]
[SourceQuality "1"]
[TimeControl "5400+30"]

1. e4 {[%emt 0:00:00]} e6 {[%emt 0:00:00]} 2. d4 {[%emt 0:00:08]} g6 {[%emt 0:00:00]} 3. Nf3 {[%emt 0:01:12]} Bg7 {[%emt 0:00:00]} 4. c3 {[%emt 0:00:26]} Ne7 {[%emt 0:00:03]} 5. Bc4 {[%emt 0:00:44]} O-O {[%emt 0:00:08]} 6. Be3 {[%emt 0:01:40]} Nbc6 {[%emt 0:00:29]} 7. Na3 {[%emt 0:03:33]} d5 {[%emt 0:00:32]} 8. exd5 {[%emt 0:01:18]} Nxd5 {[%emt 0:00:17]} 9. Bg5 {[%emt 0:01:25]} Qd7 {[%emt 0:00:47]} 10. Qd2 {[%emt 0:01:27]} Nf6 {[%emt 0:02:54]} 11. O-O-O {[%emt 0:02:57]} Ne4 {[%emt 0:01:50]} 12. Qe3 {[%emt 0:05:55]} Nxg5 {[%emt 0:00:35]} 13. Nxg5 {[%emt 0:00:12]} a6 {[%emt 0:00:44]} 14. h4 {[%emt 0:06:22]} b5 {[%emt 0:00:24]} 15. Bb3 {[%emt 0:01:00]} b4 {[%emt 0:00:41]} 16. h5 {[%emt 0:13:33]} Bh6 {[%emt 0:04:00]} 17. hxg6 {[%emt 0:03:47]} Bxg5 {[%emt 0:00:29]} 18. gxh7+ {[%emt 0:03:30]} Kh8 {[%emt 0:00:25]} 19. Qxg5 {[%emt 0:00:25]} f6 {[%emt 0:00:47]} 20. Qh6 {[%emt 0:01:36]} Bb7 {[%emt 0:00:34]} 21. d5 {[%emt 0:10:33]} bxa3 {[%emt 0:01:23]} 22. dxe6 {[%emt 0:00:52]} axb2+ {[%emt 0:00:10]} 23. Kxb2 {[%emt 0:01:35]} Qg7 {[%emt 0:00:30]} 24. Qxg7+ {[%emt 0:01:04]} Kxg7 {[%emt 0:00:04]} 25. Rd7+ {[%emt 0:11:01]} Kh8 {[%emt 0:00:20]} 26. Rxc7 {[%emt 0:03:07]} Rab8 {[%emt 0:00:32]} 27. Re1 {[%emt 0:05:25]} Ne5 {[%emt 0:00:54]} 28. e7 {[%emt 0:00:44]} Rfe8 {[%emt 0:00:21]} 29. Kc2 {[%emt 0:01:10]} Bc6 {[%emt 0:04:34]} 30. f4 {[%emt 0:00:28]} Ng6 {[%emt 0:07:16]} 31. Rxc6 {[%emt 0:05:40]} Rxe7 {[%emt 0:00:37]} 32. Rxe7 {[%emt 0:00:25]} Nxe7 {[%emt 0:00:56]} 33. Rxf6 {[%emt 0:00:22]} Rxb3 {[%emt 0:01:57]} 34. axb3 {[%emt 0:00:12]} Nd5 {[%emt 0:00:08]} 35. Rxa6 {[%emt 0:00:49]} Ne3+ {[%emt 0:00:11]} 36. Kb2 {[%emt 0:00:24]} Nxg2 {[%emt 0:00:07]} 37. f5 {[%emt 0:00:14]} Nf4 {[%emt 0:01:04]} 38. f6 {[%emt 0:00:34]} Nd3+ {[%emt 0:00:45]} 39. Ka3 {[%emt 0:00:34]} Nc5 {[%emt 0:00:09]} 40. f7 {[%emt 0:01:18]} Nd7 {[%emt 0:00:20]} 41. Ra8+ {[%emt 0:00:18]} Nf8 {[%emt 0:00:47]} 42. Rxf8+ {[%emt 0:00:12]} Kxh7 {[%emt 0:00:04]} 43. Rg8 {[%emt 0:00:11]} Kh6 {[%emt 0:00:11]} 44. f8=Q+ {[%emt 0:00:06]} Kh5 {[%emt 0:00:08]} 45. Rg7 {[%emt 0:00:13]} Kh6 {[%emt 0:00:13]} 46. Qh8# {[%emt 0:00:06]} 1-0

[Event "ONJK-B 2019"]
[Site "Borne"]
[Date "2019.08.09"]
[Round "8.13"]
[White "Warnaar, Mark"]
[Black "Hooijmans, Max"]
[Result "1-0"]
[ECO "C44"]
[WhiteElo "1175"]
[BlackElo "1559"]
[Annotator "NA"]
[PlyCount "83"]
[EventDate "2019.08.05"]
[EventType "swiss"]
[EventCountry "NED"]
[SourceTitle "playchess.com"]
[Source "ChessBase"]
[SourceQuality "1"]
[TimeControl "5400+30"]

1. e4 {[%emt 0:01:43]} e5 {[%emt 0:00:00]} 2. Nf3 {[%emt 0:00:16]} Nc6 {[%emt 0:00:00]} 3. c3 {[%emt 0:00:03]} Nf6 {[%emt 0:00:45]} 4. d4 {[%emt 0:00:06]} exd4 {[%emt 0:01:56]} 5. e5 {[%emt 0:00:28]} Nd5 {[%emt 0:03:46]} 6. cxd4 {[%emt 0:00:26]} Bb4+ {[%emt 0:02:45]} 7. Nbd2 {[%emt 0:00:46]} O-O {[%emt 0:01:37]} 8. a3 {[%emt 0:00:48]} Ba5 {[%emt 0:01:02]} 9. b4 {[%emt 0:01:55]} Bb6 {[%emt 0:00:33]} 10. Bc4 {[%emt 0:02:37]} Nf4 {[%emt 0:01:40]} 11. O-O {[%emt 0:01:42]} Nxd4 {[%emt 0:00:42]} 12. Nxd4 {[%emt 0:00:38]} Bxd4 {[%emt 0:00:02]} 13. Nf3 {[%emt 0:00:18]} Bxa1 {[%emt 0:00:29]} 14. Bxf4 {[%emt 0:00:07]} d5 {[%emt 0:02:30]} 15. Bd3 {[%emt 0:00:58]} Bb2 {[%emt 0:01:50]} 16. Qb3 {[%emt 0:00:21]} Bxa3 {[%emt 0:00:51]} 17. Qxa3 {[%emt 0:00:08]} h6 {[%emt 0:01:20]} 18. Bc2 {[%emt 0:00:29]} h5 {[%emt 0:02:21]} 19. Qd3 {[%emt 0:01:37]} g6 {[%emt 0:00:24]} 20. Bg5 {[%emt 0:00:05]} Qe8 {[%emt 0:02:39]} 21. Bf6 {[%emt 0:00:59]} Bg4 {[%emt 0:01:51]} 22. Qe3 {[%emt 0:00:27]} Kh7 {[%emt 0:00:21]} 23. Qg5 {[%emt 0:00:54]} Rh8 {[%emt 0:03:58]} 24. h3 {[%emt 0:01:18]} Bxf3 {[%emt 0:01:10]} 25. gxf3 {[%emt 0:00:21]} Kg8 {[%emt 0:00:16]} 26. Bxh8 {[%emt 0:00:35]} Kxh8 {[%emt 0:00:03]} 27. Qf6+ {[%emt 0:00:18]} Kg8 {[%emt 0:00:28]} 28. Kh1 {[%emt 0:00:49]} Kh7 {[%emt 0:01:52]} 29. Rg1 {[%emt 0:00:58]} a5 {[%emt 0:04:17]} 30. bxa5 {[%emt 0:01:07]} Rxa5 {[%emt 0:00:44]} 31. f4 {[%emt 0:00:15]} Ra2 {[%emt 0:00:33]} 32. Bb3 {[%emt 0:00:38]} Rxf2 {[%emt 0:00:43]} 33. Bxd5 {[%emt 0:00:11]} Kh6 {[%emt 0:04:30]} 34. Rg2 {[%emt 0:01:25]} Rxg2 {[%emt 0:02:05]} 35. Kxg2 {[%emt 0:00:43]} b5 {[%emt 0:03:05]} 36. h4 {[%emt 0:01:51]} Qc8 {[%emt 0:01:05]} 37. Qg5+ {[%emt 0:03:13]} Kg7 {[%emt 0:00:20]} 38. Kh2 {[%emt 0:00:44]} Qa6 {[%emt 0:01:52]} 39. Qe7 {[%emt 0:02:18]} b4 {[%emt 0:01:00]} 40. Qxf7+ {[%emt 0:00:32]} Kh6 {[%emt 0:00:03]} 41. Qf8+ {[%emt 0:00:11]} Kh7 {[%emt 0:00:07]} 42. Qg8+ {[%emt 0:00:38]} 1-0

[Event "ONJK-B 2019"]
[Site "Borne"]
[Date "2019.08.09"]
[Round "8.14"]
[White "Michielsen, Lies"]
[Black "Visser, Barto"]
[Result "0-1"]
[ECO "B34"]
[WhiteElo "1489"]
[BlackElo "1342"]
[Annotator "NA"]
[PlyCount "46"]
[EventDate "2019.08.05"]
[EventType "swiss"]
[EventCountry "NED"]
[SourceTitle "playchess.com"]
[Source "ChessBase"]
[SourceQuality "1"]
[TimeControl "5400+30"]

1. e4 {[%emt 0:00:00]} c5 {[%emt 0:00:00]} 2. Nf3 {[%emt 0:00:00]} Nc6 {[%emt 0:00:00]} 3. d4 {[%emt 0:00:00]} cxd4 {[%emt 0:00:00]} 4. Nxd4 {[%emt 0:00:00]} g6 {[%emt 0:00:00]} 5. Nc3 {[%emt 0:00:05]} Bg7 {[%emt 0:00:17]} 6. Be3 {[%emt 0:00:10]} Nf6 {[%emt 0:00:19]} 7. Be2 {[%emt 0:06:29]} O-O {[%emt 0:01:01]} 8. O-O {[%emt 0:08:55]} d5 {[%emt 0:02:29]} 9. Nxc6 {[%emt 0:06:43]} bxc6 {[%emt 0:00:33]} 10. exd5 {[%emt 0:00:39]} cxd5 {[%emt 0:00:16]} 11. Qd2 {[%emt 0:04:47]} Re8 {[%emt 0:04:21]} 12. Rad1 {[%emt 0:03:04]} Bb7 {[%emt 0:02:23]} 13. Bb5 {[%emt 0:02:13]} Rf8 {[%emt 0:02:28]} 14. Rfe1 {[%emt 0:03:13]} e5 {[%emt 0:03:23]} 15. Bc5 {[%emt 0:02:31]} d4 {[%emt 0:02:05]} 16. Bxf8 {[%emt 0:03:20]} Kxf8 {[%emt 0:01:32]} 17. Ne2 {[%emt 0:04:32]} Kg8 {[%emt 0:02:17]} 18. f4 {[%emt 0:07:22]} Qd5 {[%emt 0:01:41]} 19. Nc1 {[%emt 0:11:54]} Qxb5 {[%emt 0:01:33]} 20. fxe5 {[%emt 0:02:49]} Ne4 {[%emt 0:02:14]} 21. Qxd4 {[%emt 0:04:01]} Bxe5 {[%emt 0:01:17]} 22. Qd7 {[%emt 0:01:33]} Qc5+ {[%emt 0:01:24]} 23. Kf1 {[%emt 0:01:28]} Qf2# {[%emt 0:01:27]} 0-1